Cogmind - Beta 14 @@@ ROGUE MODE // 2024.10.17 @ 19:08:17 Player: Zane Result: Destroyed by YU-PEJ(R) with Subdweller Shrapnel Launcher Performance ------------- Evolutions (0) 0 Regions Visited (2) 400 Robots Destroyed (24) 120 Value Destroyed (694) 694 Prototype IDs (0) 0 Alien Tech Used (0) 0 Bonus (0) 0 TOTAL SCORE: 1214 Bonus ------- None Cogmind --------- Core Integrity 0/250 Matter 300/300 Energy 100/100 System Corruption 0% Temperature Cool (0) Movement Treading (160) Location -10/Subcaves Parts ------- > --- POWER (1) -------- (None) > --- PROPULSION (2) --- Light Treads Light Treads > --- UTILITY (2) ------ Small Storage Unit Seismic Detector > --- WEAPON (2) ------- Makeshift Axe Makeshift Spear > --- INVENTORY (8) ---- Subdweller Power Source Spiked Treads Spiked Treads Structural Scanner Subdweller Optics Subdweller Optics Improved Terrain Scanner Targeting Computer Peak State ------------ > --- POWER ------------ Subdweller Power Source > --- PROPULSION ------- Light Treads Light Treads > --- UTILITY ---------- Medium Storage Unit Subdweller Optics > --- WEAPON ----------- Riot Gun Makeshift Axe > --- INVENTORY -------- Spiked Treads Spiked Treads Subdweller Monowheel Small Storage Unit Structural Scanner Improved Terrain Scanner Seismic Detector Targeting Computer Mining Laser [Rating: 15] Favorites ----------- Power Ion Engine Engine Ion Engine Propulsion Aluminum Leg Treads Light Treads Leg Aluminum Leg Utility Medium Storage Unit Device Seismic Detector Storage Medium Storage Unit Protection Light Armor Plating Weapon Assault Rifle Energy Gun Medium Laser Ballistic Gun Assault Rifle Ballistic Cannon Battle Cannon Special Weapon Mining Laser Slashing Weapon Makeshift Axe Piercing Weapon Makeshift Spear Build | -11 -10 -10 ------- Run | Yrd Mat Sub Slots Evolved . | . . . Power . | . . . Propulsion . | . . . Utility . | . . . Weapon . | . . . Parts Attached 38 | 8 4 26 Power 4 | 1 . 3 Engine 4 | 1 . 3 Core . | . . . Reactor . | . . . Propulsion 5 | 2 1 2 Treads 2 | . . 2 Leg 3 | 2 1 . Wheel . | . . . Hover . | . . . Flight . | . . . Utility 16 | 3 3 10 Device 8 | 2 1 5 Storage 4 | 1 1 2 Processor . | . . . Hackware . | . . . Protection 4 | . 1 3 Artifact . | . . . Weapon 13 | 2 . 11 Energy Gun 2 | 1 . 1 Energy Cannon . | . . . Ballistic Gun 3 | 1 . 2 Ballistic Cannon 1 | . . 1 Launcher . | . . . Special Weapon 4 | . . 4 Impact Weapon . | . . . Slashing Weapon 2 | . . 2 Piercing Weapon 1 | . . 1 Special Melee Weapon . | . . . Unidentified Prototypes . | . . . Parts Lost 8 | . . 8 Power 2 | . . 2 Propulsion 1 | . . 1 Utility 2 | . . 2 Weapon 3 | . . 3 Highest Loss Streak 2 | . . 2 To Critical Strikes . | . . . Average Slot Usage (%) 96 | . 100 93 Engine 14 | . 14 14 Treads 10 | . . 16 Leg 17 | . 28 11 Device 8 | . 4 11 Storage 14 | . 14 14 Protection 4 | . 9 1 Energy Gun 6 | . 14 1 Ballistic Gun 7 | . 14 3 Ballistic Cannon 2 | . . 4 Special Weapon 1 | . . 3 Slashing Weapon 4 | . . 7 Peak Build Rating 15 | 9 8 15 Average Rating 9 | 6 7 11 On Entrance 5 | . 7 8 Naked Turns . | . . . Heaviest Build 24 | 15 22 24 Greatest Support 40 | 20 20 40 Greatest Overweight (x) 2 | 2 1 1 Average Overweight (x) . | . . . Largest Inventory Capacity 10 | 8 10 10 Average Capacity 9 | 7 9 9 Most Carried 10 | 6 10 10 Average Carried 9 | 4 9 9 Final Capacity 10 | 8 10 8 Final Carried 10 | 6 10 8 Class Distribution -------------------- 100% | Mutant Dominant Class ---------------- Mutant | -10/Materials Mutant | -10/Subcaves Resources | -11 -10 -10 ----------- Run | Yrd Mat Sub Matter Collected 891 | 307 91 493 Remotely . | . . . Salvage Created 795 | 151 314 330 Parts 50 | 12 16 22 Haulers Intercepted . | . . . Recyclers Shooed 1 | 1 . . Parts Field Recycled . | . . . Retrieved Matter . | . . . Parts Self-Destructed 2 | . . 2 Prevented . | . . . Kills | -11 -10 -10 ------- Run | Yrd Mat Sub Combat Hostiles Destroyed 19 | . 8 11 Melee 6 | . . 6 Guns 9 | . 6 3 Cannons 2 | . . 2 AOE 2 | . 2 . Classes Destroyed 6 | 2 2 2 Tunneler 3 | 3 . . Recycler 2 | 1 1 . Swarmer 4 | . 3 1 Grunt 5 | . 5 . Sentry 1 | . . 1 Subdweller 9 | . . 9 Best Kill Streak 4 | 4 4 2 Combat Bots Only 4 | . 4 2 Max Kills in Single Turn 2 | 1 2 1 Gunslinging . | . . . Exploded 2 | . 2 . Melee 1 | . . 1 Uniques/NPCs Destroyed . | . . . Combat | -11 -10 -10 -------- Run | Yrd Mat Sub Hostile Shots Fired 111 | . 33 78 Missed 30 | . 8 22 Damage Taken 1534 | . 350 1184 Core 256 | . . 256 Absorbed by Shields . | . . . Core Remaining (%) 100 | 100 . . Volleys Fired 90 | 9 21 60 Largest 2 | 2 2 2 Hottest 139 | 70 70 139 Shots Fired 150 | 18 42 90 Gun 89 | 18 42 29 Cannon 41 | . . 41 Launcher . | . . . Special 20 | . . 20 Kinetic 93 | 9 21 63 Thermal 57 | 9 21 27 Explosive . | . . . Electromagnetic . | . . . Robot Hit Streak 15 | 7 15 9 Robot Miss Streak 3 | 1 2 3 Penetration Max . | . . . Secondary Targets 1 | . . 1 Max Gunslinging Chain 1 | . . 1 Shots Hit Robots 101 | 12 32 57 Core Hits 35 | 5 16 14 Critical Kills . | . . . Critical Parts Destroyed . | . . . Critical Strikes 3 | . 2 1 Burn 2 | . 2 . Blast 1 | . . 1 Melee Attacks 17 | . . 17 Impact . | . . . Slashing 16 | . . 16 Piercing 1 | . . 1 Sneak Attacks . | . . . Combat Hostiles . | . . . Follow-up Attacks . | . . . Damage Inflicted 2074 | 149 608 1317 Guns 784 | 149 404 231 Cannons 452 | . . 452 Explosions 204 | . 204 . Melee 618 | . . 618 Ramming 16 | . . 16 Kinetic 935 | 100 201 634 Thermal 301 | 49 203 49 Explosive 204 | . 204 . Electromagnetic . | . . . Impact . | . . . Slashing 618 | . . 618 Piercing . | . . . Highest Corruption . | . . . Average Corruption . | . . . Corruption Purged . | . . . Corruption Blocked . | . . . Overload Shots . | . . . Overflow Damage . | . . . Projectiles . | . . . Explosions . | . . . Melee . | . . . Knockbacks 10 | . . 10 Impact . | . . . Kinetic 10 | . . 10 Secondary . | . . . Self-Inflicted Damage 100 | . 100 . Shots 1 | . 1 . Rammed 6 | . . 6 Targets Rammed 6 | . . 6 Kicked . | . . . Crushed . | . . . Highest Temperature 162 | 36 162 . Average Temperature 47 | 15 58 . Received Heat Transfer 261 | . 84 177 Siege Activations . | . . . Robots Corrupted . | . . . Combat Hostiles . | . . . Parts Fried . | . . . Impact Corruptions . | . . . Robots Melted . | . . . Combat Hostiles . | . . . Parts Melted . | . . . Heat Transferred 1036 | 148 740 148 Parts Sabotaged . | . . . Parts Stolen . | . . . Parts Stripped . | . . . Power Chain Reactions . | . . . Alert | -11 -10 -10 ------- Run | Yrd Mat Sub Peak Influence 276 | 20 276 . Initial 13 | . 13 . Average 120 | 10 135 . Maximum Alert Level 1 | . 1 . Low Security (%) 75 | 100 72 . Level 1 24 | . 27 . Level 2 . | . . . Level 3 . | . . . Level 4 . | . . . Level 5 . | . . . High Security . | . . . Max Security . | . . . Squads Dispatched . | . . . Investigation . | . . . Extermination . | . . . Reinforcement . | . . . Assault . | . . . Garrison . | . . . Intercept . | . . . Searches Triggered . | . . . Construction Impeded . | . . . Haulers Reinforced . | . . . Active Scanning Responses . | . . . Cargo Convoy Interrupts . | . . . Stealth | -11 -10 -10 --------- Run | Yrd Mat Sub Distress Signals 1 | . 1 . Communications Jammed . | . . . Distress Signals . | . . . Times Spotted 23 | . 11 12 Peak Tracking Total 3 | . 3 2 Tactical Retreats 1 | . 1 . Traps | -11 -10 -10 ------- Run | Yrd Mat Sub Traps Triggered 1 | . . 1 Indirectly . | . . . Trap Hack Attempts . | . . . Triggered . | . . . Disarmed 4 | . 4 . Reprogrammed . | . . . Reused . | . . . Traps Extracted . | . . . Installed . | . . . Triggered . | . . . Machines | -11 -10 -10 ---------- Run | Yrd Mat Sub Machines Disabled 2 | . 2 . Max in Single Turn 1 | . 1 . Machines Repaired . | . . . Machines Dismantled . | . . . Machines Sabotaged . | . . . Overloaded Fab Kills . | . . . Hacking | -11 -10 -10 --------- Run | Yrd Mat Sub Machines Accessed 4 | . 4 . Terminals 4 | . 4 . Fabricators . | . . . Repair Stations . | . . . Recycling Units . | . . . Scanalyzers . | . . . Garrison Access . | . . . Total Hacks 18 | . 18 . Successful 9 | . 9 . Failed 9 | . 9 . Catastrophic 1 | . 1 . Database Lockouts . | . . . Manual 11 | . 11 . Terminals 18 | . 18 . Fabricators . | . . . Repair Stations . | . . . Recycling Units . | . . . Scanalyzers . | . . . Garrison Access . | . . . Terminal Hacks 8 | . 8 . Record 1 | . 1 . Emergency Access Points 1 | . 1 . Locate Traps 2 | . 2 . Disarm Traps 1 | . 1 . Registered Components 1 | . 1 . Zone Layout 2 | . 2 . Fabricator Hacks . | . . . Repair Station Hacks . | . . . Recycling Unit Hacks . | . . . Scanalyzer . | . . . Garrison Access Hacks . | . . . Unauthorized Hacks 1 | . 1 . Terminals 1 | . 1 . Assimilate 1 | . 1 . Fabricators . | . . . Repair Stations . | . . . Recycling Units . | . . . Scanalyzers . | . . . Garrison Access . | . . . Data Cores Recovered . | . . . Used . | . . . Hacking Detections 3 | . 3 . Full Trace Events . | . . . Feedback Events . | . . . Feedback Blocked . | . . . Robot Schematics Acquired . | . . . Robots Built . | . . . Authchips . | . . . Time . | . . . Total Robot Build Rating . | . . . Part Schematics Acquired . | . . . Parts Built . | . . . Authchips . | . . . Time . | . . . Total Part Build Rating . | . . . Parts Repaired . | . . . Time . | . . . Parts Recycled . | . . . Recycled Matter . | . . . Retrieved Matter . | . . . Retrieved Components . | . . . Parts Scanalyzed . | . . . Part Schematics Acquired . | . . . Parts Damaged . | . . . Bothacking | -11 -10 -10 ------------ Run | Yrd Mat Sub Used RIF Installer . | . . . Robots Hacked . | . . . Non-combat . | . . . Combat . | . . . Robot Hacks Applied . | . . . Relay Couplers Released . | . . . Fabnet Peak Effective % . | . . . Robots Rewired . | . . . Allies Hacked . | . . . Hacks Repelled . | . . . Allies | -11 -10 -10 -------- Run | Yrd Mat Sub Total Allies . | . . . Largest Group . | . . . Highest-Rated Group . | . . . Highest-Rated Ally . | . . . Total Orders . | . . . Ally Attacks . | . . . Total Damage . | . . . Kills . | . . . Allies Corrupted . | . . . Allies Melted . | . . . Intel | -11 -10 -10 ------- Run | Yrd Mat Sub Robot Analysis Total . | . . . Derelict Logs Recovered 1 | . . 1 Drone Launches . | . . . Drone Recoveries . | . . . Exploration | -11 -10 -10 ------------- Run | Yrd Mat Sub Turns Passed 2785 | 140 1046 1599 Spaces Moved 1086 | 84 254 748 Core 9 | 9 . . Treads 439 | . . 439 Legs 638 | 75 254 309 Wheels . | . . . Hover . | . . . Flight . | . . . Fastest Speed 50 | 50 120 120 Average Speed 140 | 113 132 146 Slowest Speed 190 | 150 190 190 Overloaded Moves . | . . . Propulsion Burnouts . | . . . Robots Hopped . | . . . Cave-ins Triggered . | . . . Exploration Rate (%) 35 | 4 59 42 Regions Visited 2 Branch Regions 1 Pre-discovered Areas . | . . . Known Exits Taken . | . . . Unknown Exits Taken 2 | 1 1 . Scrap Searched 5 | . . 5 Spaces Dug . | . . . Terrain Destroyed 61 | . 61 . Melee . | . . . Projectile . | . . . AOE 61 | . 61 . Terrain Rammed . | . . . Walls Destroyed . | . . . Machines Disabled . | . . . Actions | -11 -10 -10 --------- Run | Yrd Mat Sub Total 2117 | 106 919 1092 Wait 856 | . 636 220 Move 1084 | 83 253 748 Hop . | . . . Pick Up 21 | 6 4 11 Fast Attach 9 | 7 . 2 Attach 6 | . . 6 Detach . | . . . Swap 23 | 1 4 18 Drop 6 | . 1 5 Fire 90 | 9 21 60 Melee 16 | . . 16 Ram . | . . . Kick . | . . . Crush 6 | . . 6 Escape Stasis . | . . . Rewire . | . . . Trap . | . . . Miscellaneous . | . . . Route ------- -11/Scrapyard -10/Materials (discovered 2 exits: [*Mat] / [*Sub]) -10/Subcaves History --------- Turn | Location | Event 5 | -11/Scrapyard | Discovered new exit (range 14) 141 | -11/Scrapyard | Entered Materials 301 | -10/Materials | Build established: Mutant 327 | -10/Materials | Discovered new exit (range 15) 1152 | -10/Materials | Discovered new exit (range 6) 1187 | -10/Materials | Entered Subcaves 1322 | -10/Subcaves | Shifting Twisted Machinery released Mak. Axe 1323 | -10/Subcaves | Shifting Twisted Machinery released Sub. Monowheel 1330 | -10/Subcaves | Shifting Twisted Machinery released Battle Cannon 1331 | -10/Subcaves | Shifting Twisted Machinery released Sub. Laser 1351 | -10/Subcaves | Learned 2 Materials zone layouts 1785 | -10/Subcaves | Core integrity fell below 50% 2096 | -10/Subcaves | Core integrity fell below 20% 2786 | -10/Subcaves | Destroyed by YU-PEJ(R) with Subdweller Shrapnel Launcher Last Messages --------------- 02125_ Mining Laser destroyed. 02126_ Z8-PIA(u) deconstructs Twisted Machinery. 02133_ Y5-H7U(R) destroyed. 02135_ Acquired 28 matter. 02140_ Acquired Sub. Optics. 02142_ Acquired 14 matter. 02169_ 4H-JYJ(R) destroyed. 02171_ 2J-6QG(R) destroyed. 02638_ Sub. Power Source shoots sparks and powers down. 02700_ Med. Storage Unit destroyed. 02700_ Slammed into FW-JZC(R). 02704_ FW-JZC(R) destroyed. 02707_ Acquired 2 matter. 02711_ Acquired Targeting Computer. 02714_ Acquired Spk. Treads. 02717_ Acquired Sub. Optics. 02719_ Acquired 18 matter. 02786_ Sub. Power Source destroyed. Map ----- +----------------------------------------------------+ | ????# ###??## ##???????????????? | | ????#### #???## ##????????????????? | | ???????## ## #????# ##????????????????? | | ????????## # ##?#### ####?????????????? | | ????????# ### ### #?????????????? | | ????????# ## ### #?????????????? | | ????????# ## # ## #### #?????????????? | | ??????### ## ## #?## ##?????????????? | | ??????# ## ### ##??????????????? | | ??????## ##???????????????? | | ???????# ## ##????????????????? | | ???????#"""# #" #### #?????????????????? | | ???????# ####" ##??# #?????????????????? | | ??????# ""##?## ##??## #?????????????????? | | ?????#" ""#""## #???## ##?????????????????? | | ?????#"""""" ##????## #??????????????????? | | ?????##"""# # # #??????## #??????????????????? | | ??????#??"## # ############??????????????????? | | ?????????"" """ & &%&!#?????????????????????? | | ????????""" """ = !##?????????????????????? | | ???????? "" ###### ## &&#?????????????????????? | | ???????? ""??????###### ##?????????????????????? | | ????????##???????????# ##?????????????????????? | | ?????????????????????## #####?????????????????? | | ??????????????????????# #?????????????????? | | ?????????????????????# # @R ##?????????????????? | | ?????????????????????###### #???????????????? | | ??????????????????????????? ##???????????????? | | ???????????????????????????? #???????????????? | | ???????????????????????????? #???????????????? | | ????????????????????????????? #???????????????? | | ????????????????????????????? #???????????????? | | ??????????????????????????????$#???????????????? | | ?????????????????????????????? #???????????????? | | ??????????????????????????????? ???????????????? | | ??????????????????????????????? ???????????????? | | ???????????????????????????????? ??????????????? | | ????????????????????????????????#??????????????? | | ???????????????????????????????????????????????? | | ???????????????????????????????????????????????? | | ???????????????????????????????????????????????? | | ???????????????????????????????????????????????? | | ???????????????????????????????????????????????? | | ???????????????????????????????????????????????? | | ???????????????????????????????????????????????? | | ???????????????????????????????????????????????? | | ???????????????????????????????????????????????? | | ???????????????????????????????????????????????? | | ???????????????????????????????????????????????? | | ???????????????????????????????????????????????? | +----------------------------------------------------+ Best States ------------- Heat Dissipation 25 Energy Generation 15 Energy Capacity 250 Matter Stores 300 Matter Capacity 300 Sight Range 21 Terrain Scan Range 16 Terrain Scan Density 10 Armor Coverage 150 Evasion (%) 55 Recoil Reduction 2 Item Schematics ----------------- None Robot Schematics ------------------ None Fabricated ------------ Nothing Alien Tech Used ----------------- None Achievements -------------- None Challenges ------------ None Game ------ Seed OmegaExperimentalFlamer Manual? 0 Play Time 00:27:38 Cumulative 22.3 hours Start 2024.10.17 @ 18:22:14 End 2024.10.17 @ 19:08:17 Sessions 1 Manual Loads 0 Difficulty Rogue Special Mode None Game No. 32 Rogue 32 Adventurer 0 Explorer 0 Win Type - Total 0 Types 0/0/0/0/0/0/0/0/0 Lore% 25 Gallery% 28 Achievement% 23 Wizard Run 0 Options --------- Layout 1 ASCII 0 Keyboard 0 Movement Mouse Keybinds 0 Fullscreen 1 Font 24/Smallcaps Map View 50x35 Zoom Use 0% Tactical HUD 1 Map Filters NONE Filters NONE Steam 1 RUN: 07dd51c3-56b7-4d9f-bfea-6f4319224b93